[Event "Esbjerg Efterår 2024 - Esbjergmesterskabet"]
[Site "Esbjerg, Denmark"]
[Date "2024.10.18"]
[Round "3.7"]
[White "Guindy, Esmat Susanne"]
[Black "Paludan, Noah"]
[Result "1-0"]
[TimeControl "1.-3. 20 min + 5 sek, 4.-7. 90 min + 30 sek + 15 min efter 40 træk"]
[WhiteElo "2025"]
[BlackElo "1979"]

1. c4 {[%clk 00:20:06]} {[%emt 00:00:03]} Nf6 {[%clk 00:20:01]} {[%emt
00:00:09]} 2. Nf3 {[%clk 00:20:06]} {[%emt 00:00:05]} g6 {[%clk 00:19:57]}
{[%emt 00:00:09]} 3. g3 {[%clk 00:20:08]} {[%emt 00:00:02]} Bg7 {[%clk
00:19:59]} {[%emt 00:00:03]} 4. Bg2 {[%clk 00:20:11]} {[%emt 00:00:03]} O-O
{[%clk 00:19:49]} {[%emt 00:00:14]} 5. O-O {[%clk 00:20:13]} {[%emt 00:00:04]}
d6 {[%clk 00:19:11]} {[%emt 00:00:43]} 6. d4 {[%clk 00:20:10]} {[%emt
00:00:08]} c5 {[%clk 00:18:51]} {[%emt 00:00:25]} 7. Nc3 {[%clk 00:19:34]}
{[%emt 00:00:41]} Nc6 {[%clk 00:18:31]} {[%emt 00:00:24]} 8. d5 {[%clk
00:18:54]} {[%emt 00:00:46]} Na5 {[%clk 00:18:31]} {[%emt 00:00:05]} 9. Nd2
{[%clk 00:18:24]} {[%emt 00:00:34]} e6 {[%clk 00:18:19]} {[%emt 00:00:17]} 10.
e4 {[%clk 00:16:58]} {[%emt 00:01:32]} Rb8 {[%clk 00:15:49]} {[%emt 00:02:34]}
11. dxe6 {[%clk 00:16:11]} {[%emt 00:00:52]} Bxe6 {[%clk 00:14:25]} {[%emt
00:01:30]} 12. Qa4 {[%clk 00:15:22]} {[%emt 00:00:53]} a6 {[%emt 00:02:55]} 13.
Rd1 {[%clk 00:13:19]} Re8 {[%clk 00:12:25]} {[%emt 00:01:23]} 14. Bf1 {[%clk
00:12:59]} {[%emt 00:00:25]} Bd7 {[%clk 00:11:12]} {[%emt 00:01:18]} 15. Qc2
{[%clk 00:12:55]} {[%emt 00:00:09]} b5 {[%clk 00:10:56]} {[%emt 00:00:22]} 16.
Rb1 {[%clk 00:11:54]} {[%emt 00:01:06]} b4 {[%clk 00:04:52]} {[%emt 00:06:09]}
17. Ne2 {[%clk 00:11:51]} {[%emt 00:00:07]} Nc6 {[%clk 00:03:44]} {[%emt
00:01:13]} 18. b3 {[%clk 00:11:00]} {[%emt 00:00:56]} Qc8 {[%clk 00:01:49]}
{[%emt 00:02:00]} 19. Bb2 {[%clk 00:08:27]} {[%emt 00:02:38]} Bh3 {[%clk
00:01:27]} {[%emt 00:00:27]} 20. f3 {[%clk 00:05:52]} {[%emt 00:02:40]} h5
{[%clk 00:01:14]} {[%emt 00:00:18]} 21. Bxh3 {[%clk 00:05:18]} {[%emt
00:00:39]} Qxh3 {[%clk 00:01:17]} {[%emt 00:00:02]} 22. Nf4 {[%clk 00:05:19]}
{[%emt 00:00:04]} Qd7 {[%clk 00:01:11]} {[%emt 00:00:11]} 23. Qd3 {[%clk
00:05:05]} {[%emt 00:00:19]} g5 {[%clk 00:00:31]} {[%emt 00:00:46]} 24. Nd5
{[%clk 00:04:46]} {[%emt 00:00:23]} Nxd5 {[%clk 00:00:12]} {[%emt 00:00:24]} 25.
cxd5 {[%clk 00:04:15]} {[%emt 00:00:37]} Nd4 {[%clk 00:00:07]} {[%emt
00:00:10]} 26. Kg2 {[%clk 00:02:51]} {[%emt 00:01:29]} g4 {[%clk 00:00:08]}
{[%emt 00:00:04]} 27. f4 {[%clk 00:02:48]} {[%emt 00:00:08]} Qe7 {[%clk
00:00:07]} {[%emt 00:00:06]} 28. Re1 {[%clk 00:02:44]} {[%emt 00:00:08]} h4
{[%clk 00:00:10]} {[%emt 00:00:03]} 29. Bxd4 {[%clk 00:02:18]} {[%emt
00:00:30]} Bxd4 {[%clk 00:00:13]} {[%emt 00:00:02]} 30. Nc4 {[%clk 00:02:14]}
{[%emt 00:00:09]} hxg3 {[%clk 00:00:15]} {[%emt 00:00:04]} 31. hxg3 {[%clk
00:02:17]} {[%emt 00:00:01]} Qf6 {[%emt 00:00:26]} 32. Rh1 {[%clk 00:02:06]}
Kg7 {[%clk 00:00:12]} {[%emt 00:00:03]} 33. Rh4 {[%clk 00:02:08]} {[%emt
00:00:03]} Rh8 {[%clk 00:00:12]} {[%emt 00:00:04]} 34. Rxg4+ {[%clk 00:02:09]}
{[%emt 00:00:04]} Kf8 {[%clk 00:00:15]} {[%emt 00:00:03]} 35. Rf1 {[%clk
00:01:46]} {[%emt 00:00:28]} Ke7 {[%clk 00:00:17]} {[%emt 00:00:03]} 36. e5
{[%clk 00:01:44]} {[%emt 00:00:06]} dxe5 {[%clk 00:00:09]} {[%emt 00:00:13]} 37.
fxe5 {[%clk 00:01:47]} {[%emt 00:00:02]} Qh6 {[%clk 00:00:09]} {[%emt
00:00:05]} 38. d6+ {[%clk 00:01:33]} {[%emt 00:00:20]} Ke8 {[%clk 00:00:07]}
{[%emt 00:00:07]} 39. Rh4 {[%clk 00:01:29]} {[%emt 00:00:09]} Qg7 {[%clk
00:00:11]} {[%emt 00:00:02]} 40. Rxh8+ {[%clk 00:01:27]} {[%emt 00:00:06]} Qxh8
{[%clk 00:00:14]} {[%emt 00:00:01]} 41. Qf5 {[%clk 00:01:21]} {[%emt 00:00:12]}
Qg7 {[%clk 00:00:07]} {[%emt 00:00:12]} 42. e6 {[%clk 00:01:10]} {[%emt
00:00:16]} fxe6 {[%emt 00:00:09]} 1-0

[Event "Esbjerg Efterår 2024 - Esbjergmesterskabet"]
[Site "Esbjerg, Denmark"]
[Date "2024.10.18"]
[Round "3.8"]
[White "Husum, Lars"]
[Black "Desevac, Damir"]
[Result "0-1"]
[TimeControl "1.-3. 20 min + 5 sek, 4.-7. 90 min + 30 sek + 15 min efter 40 træk"]
[WhiteElo "2001"]
[BlackElo "1836"]

1. d4 {[%clk 00:20:07]} {[%emt 00:00:02]} Nf6 {[%clk 00:20:05]} {[%emt
00:00:05]} 2. Bf4 {[%clk 00:20:10]} {[%emt 00:00:03]} d5 {[%clk 00:20:07]}
{[%emt 00:00:03]} 3. e3 {[%clk 00:20:13]} {[%emt 00:00:02]} c5 {[%clk
00:20:09]} {[%emt 00:00:03]} 4. Nf3 {[%clk 00:20:15]} {[%emt 00:00:03]} Nc6
{[%clk 00:19:49]} {[%emt 00:00:25]} 5. c3 {[%clk 00:20:19]} {[%emt 00:00:02]}
e6 {[%clk 00:19:39]} {[%emt 00:00:15]} 6. Nbd2 {[%clk 00:20:17]} {[%emt
00:00:07]} Bd6 {[%clk 00:19:37]} {[%emt 00:00:07]} 7. Ne5 {[%clk 00:20:16]}
{[%emt 00:00:06]} O-O {[%clk 00:18:15]} {[%emt 00:01:27]} 8. Bd3 {[%clk
00:20:17]} {[%emt 00:00:04]} Qb6 {[%clk 00:17:41]} {[%emt 00:00:39]} 9. Rb1
{[%clk 00:19:59]} {[%emt 00:00:23]} Bxe5 {[%clk 00:17:28]} {[%emt 00:00:17]} 10.
dxe5 {[%clk 00:19:58]} {[%emt 00:00:06]} Nd7 {[%clk 00:17:10]} {[%emt
00:00:23]} 11. Qh5 {[%clk 00:17:46]} {[%emt 00:02:18]} f5 {[%clk 00:16:46]}
{[%emt 00:00:29]} 12. exf6 {[%clk 00:17:11]} {[%emt 00:00:40]} Nxf6 {[%clk
00:16:46]} {[%emt 00:00:04]} 13. Qg5 {[%clk 00:16:31]} {[%emt 00:00:46]} h6
{[%clk 00:15:43]} {[%emt 00:01:08]} 14. Qg3 {[%clk 00:14:43]} {[%emt 00:01:54]}
Nh5 {[%clk 00:13:47]} {[%emt 00:02:00]} 15. Qg6 {[%clk 00:14:33]} {[%emt
00:00:16]} Nxf4 {[%clk 00:13:21]} {[%emt 00:00:30]} 16. Qh7+ {[%clk 00:14:20]}
{[%emt 00:00:19]} Kf7 {[%clk 00:13:24]} {[%emt 00:00:02]} 17. exf4 {[%clk
00:14:17]} {[%emt 00:00:07]} e5 {[%clk 00:11:14]} {[%emt 00:02:17]} 18. Bg6+
{[%clk 00:09:31]} {[%emt 00:04:51]} Kf6 {[%clk 00:11:07]} {[%emt 00:00:11]} 19.
fxe5+ {[%clk 00:09:05]} {[%emt 00:00:31]} Nxe5 {[%clk 00:10:56]} {[%emt
00:00:16]} 20. Bc2 {[%clk 00:09:05]} {[%emt 00:00:06]} Bd7 {[%clk 00:09:18]}
{[%emt 00:01:42]} 21. f4 {[%clk 00:09:08]} {[%emt 00:00:02]} Ng4 {[%clk
00:08:26]} {[%emt 00:00:57]} 22. Qg6+ {[%clk 00:08:56]} {[%emt 00:00:17]} Ke7
{[%clk 00:08:27]} {[%emt 00:00:04]} 23. Qxg7+ {[%clk 00:08:05]} {[%emt
00:00:57]} Rf7 {[%clk 00:08:29]} {[%emt 00:00:02]} 24. Qg6 {[%emt 00:01:38]}
Ke8 {[%emt 00:00:07]} 0-1